[Event "Titled Tuesday Blitz March 29 Late 2022"]
[White "Sztokbant, Bernardo Vainzoff"]
[Black "Ardila, Oscar Humberto"]
[WhiteFideId "2115956"]
[BlackFideId "4404742"]
[WhiteElo "2237"]
[BlackElo "1966"]
[Result "1-0"]
[Round "05"]
[TimeControl "180+1"]
[Date "2022.03.30"]
[WhiteClock "0:00:13"]
[BlackClock "0:00:11"]

1. e4 {[%clk 0:03:00]}  e5 {[%clk 0:02:57]} 2. Nf3 {[%clk 0:03:00]}  Nf6 {[%clk 0:02:47]} 3. d4 {[%clk 0:03:00]}  Nxe4 {[%clk 0:02:39]} 4. Bd3 {[%clk 0:03:00]}  d5 {[%clk 0:02:26]} 5. Nxe5 {[%clk 0:03:00]}  Nd7 {[%clk 0:02:25]} 6. Nxd7 {[%clk 0:02:59]}  Bxd7 {[%clk 0:02:24]} 7. O-O {[%clk 0:03:00]}  Be7 {[%clk 0:02:24]} 8. c4 {[%clk 0:02:57]}  c6 {[%clk 0:02:22]} 9. cxd5 {[%clk 0:02:50]}  cxd5 {[%clk 0:02:22]} 10. Nd2 {[%clk 0:02:47]}  Nxd2 {[%clk 0:01:57]} 11. Bxd2 {[%clk 0:02:48]}  O-O {[%clk 0:01:57]} 12. Qh5 {[%clk 0:02:47]}  g6 {[%clk 0:01:57]} 13. Qxd5 {[%clk 0:02:46]}  Bc6 {[%clk 0:01:55]} 14. Qxd8 {[%clk 0:02:44]}  Raxd8 {[%clk 0:01:55]} 15. Bc3 {[%clk 0:02:26]}  Bf6 {[%clk 0:01:53]} 16. Rad1 {[%clk 0:01:37]}  Bxd4 {[%clk 0:01:40]} 17. Bc4 {[%clk 0:01:24]}  Bxc3 {[%clk 0:01:33]} 18. bxc3 {[%clk 0:01:25]}  Rxd1 {[%clk 0:01:25]} 19. Rxd1 {[%clk 0:01:24]}  Re8 {[%clk 0:01:26]} 20. Kf1 {[%clk 0:01:21]}  Kg7 {[%clk 0:01:24]} 21. Bb3 {[%clk 0:01:17]}  Bb5+ {[%clk 0:01:19]} 22. c4 {[%clk 0:01:17]}  Bc6 {[%clk 0:01:19]} 23. f3 {[%clk 0:01:17]}  a5 {[%clk 0:01:17]} 24. Kf2 {[%clk 0:01:13]}  a4 {[%clk 0:01:14]} 25. Bc2 {[%clk 0:01:13]}  Re5 {[%clk 0:01:10]} 26. Rb1 {[%clk 0:01:07]}  Rc5 {[%clk 0:00:59]} 27. Rb4 {[%clk 0:01:07]}  Ra5 {[%clk 0:00:50]} 28. Ke3 {[%clk 0:01:04]}  Kf6 {[%clk 0:00:47]} 29. Kd4 {[%clk 0:01:01]}  Ke6 {[%clk 0:00:47]} 30. Be4 {[%clk 0:00:58]}  Kd6 {[%clk 0:00:42]} 31. Rb1 {[%clk 0:00:42]}  f5 {[%clk 0:00:37]} 32. Bxc6 {[%clk 0:00:38]}  Kxc6 {[%clk 0:00:37]} 33. Re1 {[%clk 0:00:38]}  Ra8 {[%clk 0:00:28]} 34. Re7 {[%clk 0:00:36]}  Rd8+ {[%clk 0:00:28]} 35. Kc3 {[%clk 0:00:35]}  h5 {[%clk 0:00:11]} 36. Re6+ {[%clk 0:00:32]}  Rd6 {[%clk 0:00:12]} 37. Rxd6+ {[%clk 0:00:32]}  Kxd6 {[%clk 0:00:12]} 38. Kb4 {[%clk 0:00:32]}  b6 {[%clk 0:00:12]} 39. Kxa4 {[%clk 0:00:26]}  Kc5 {[%clk 0:00:12]} 40. Kb3 {[%clk 0:00:26]}  g5 {[%clk 0:00:13]} 41. Kc3 {[%clk 0:00:25]}  g4 {[%clk 0:00:13]} 42. f4 {[%clk 0:00:20]}  h4 {[%clk 0:00:13]} 43. a3 {[%clk 0:00:19]}  b5 {[%clk 0:00:13]} 44. cxb5 {[%clk 0:00:18]}  Kxb5 {[%clk 0:00:11]} 45. Kd4 {[%clk 0:00:19]}  h3 {[%clk 0:00:10]} 46. gxh3 {[%clk 0:00:18]}  gxh3 {[%clk 0:00:09]} 47. Ke5 {[%clk 0:00:18]}  Ka4 {[%clk 0:00:06]} 48. Kxf5 {[%clk 0:00:18]}  Kxa3 {[%clk 0:00:07]} 49. Kg5 {[%clk 0:00:12]}  Kb4 {[%clk 0:00:08]} 50. f5 {[%clk 0:00:13]}  Kc4 {[%clk 0:00:09]} 51. f6 {[%clk 0:00:13]}  Kd5 {[%clk 0:00:10]} 52. f7 {[%clk 0:00:13]}  Ke5 {[%clk 0:00:11]} 1-0


[Site "https://www.chess.com"]

[Event "Titled Tuesday Blitz March 29 Late 2022"]
[White "Taichman, Ori"]
[Black "Smirnov, Pavel"]
[WhiteFideId "2804069"]
[BlackFideId "4123425"]
[WhiteElo "2227"]
[BlackElo "2545"]
[Result "0-1"]
[Round "05"]
[TimeControl "180+1"]
[Date "2022.03.29"]
[WhiteClock "0:00:02"]
[BlackClock "0:00:17"]

1. e4 {[%clk 0:02:51]}  e5 {[%clk 0:02:59]} 2. d4 {[%clk 0:02:51]}  exd4 {[%clk 0:02:59]} 3. Qxd4 {[%clk 0:02:52]}  Nc6 {[%clk 0:02:58]} 4. Qe3 {[%clk 0:02:52]}  Nf6 {[%clk 0:02:59]} 5. Nc3 {[%clk 0:02:53]}  Bb4 {[%clk 0:03:00]} 6. Bd2 {[%clk 0:02:53]}  O-O {[%clk 0:03:00]} 7. O-O-O {[%clk 0:02:54]}  Re8 {[%clk 0:03:00]} 8. Qg3 {[%clk 0:02:54]}  Rxe4 {[%clk 0:02:53]} 9. a3 {[%clk 0:02:51]}  Rg4 {[%clk 0:02:49]} 10. Qe3 {[%clk 0:02:42]}  Ba5 {[%clk 0:02:42]} 11. f3 {[%clk 0:02:26]}  Bb6 {[%clk 0:02:40]} 12. Qe1 {[%clk 0:02:27]}  Rd4 {[%clk 0:02:32]} 13. Nge2 {[%clk 0:02:26]}  Rd6 {[%clk 0:02:32]} 14. Nf4 {[%clk 0:02:26]}  a6 {[%clk 0:02:24]} 15. g4 {[%clk 0:02:24]}  Nd4 {[%clk 0:02:19]} 16. Qg3 {[%clk 0:01:55]}  Rc6 {[%clk 0:02:11]} 17. g5 {[%clk 0:01:52]}  Ne8 {[%clk 0:02:09]} 18. Bd3 {[%clk 0:01:51]}  Nd6 {[%clk 0:02:07]} 19. Nfd5 {[%clk 0:01:39]}  N6f5 {[%clk 0:02:00]} 20. Qf4 {[%clk 0:01:19]}  d6 {[%clk 0:02:00]} 21. h4 {[%clk 0:01:12]}  Be6 {[%clk 0:01:56]} 22. Kb1 {[%clk 0:01:05]}  Bc5 {[%clk 0:01:43]} 23. h5 {[%clk 0:01:01]}  Ne7 {[%clk 0:01:29]} 24. Bxh7+ {[%clk 0:00:32]}  Kxh7 {[%clk 0:01:23]} 25. g6+ {[%clk 0:00:31]}  Kg8 {[%clk 0:01:21]} 26. Nf6+ {[%clk 0:00:18]}  gxf6 {[%clk 0:01:16]} 27. Qh6 {[%clk 0:00:18]}  Nef5 {[%clk 0:01:12]} 28. gxf7+ {[%clk 0:00:12]}  Kxf7 {[%clk 0:01:12]} 29. Qh7+ {[%clk 0:00:13]}  Ke8 {[%clk 0:01:11]} 30. Rde1 {[%clk 0:00:11]}  Qe7 {[%clk 0:01:08]} 31. Rxe6 {[%clk 0:00:10]}  Nxe6 {[%clk 0:01:01]} 32. Qxf5 {[%clk 0:00:09]}  Kd7 {[%clk 0:00:37]} 33. Nd5 {[%clk 0:00:09]}  Qf7 {[%clk 0:00:37]} 34. Nxf6+ {[%clk 0:00:10]}  Kc8 {[%clk 0:00:30]} 35. Rg1 {[%clk 0:00:10]}  b5 {[%clk 0:00:28]} 36. Rg8+ {[%clk 0:00:10]}  Kb7 {[%clk 0:00:28]} 37. Rxa8 {[%clk 0:00:09]}  Kxa8 {[%clk 0:00:27]} 38. h6 {[%clk 0:00:10]}  Nf8 {[%clk 0:00:20]} 39. Qc8+ {[%clk 0:00:05]}  Ka7 {[%clk 0:00:20]} 40. Ne4 {[%clk 0:00:04]}  Bb6 {[%clk 0:00:19]} 41. Bg5 {[%clk 0:00:02]}  Nh7 {[%clk 0:00:18]} 42. Bd8 {[%clk 0:00:02]}  d5 {[%clk 0:00:17]} 0-1


[Site "https://www.chess.com"]

[Event "Titled Tuesday Blitz March 29 Late 2022"]
[White "Terrieux, Kevin"]
[Black "Chernobay, Artem"]
[WhiteFideId "622591"]
[BlackFideId "4167406"]
[WhiteElo "2665"]
[BlackElo "2544"]
[Result "1-0"]
[Round "05"]
[TimeControl "180+1"]
[Date "2022.03.30"]
[WhiteClock "0:00:11"]
[BlackClock "0:00:03"]

1. d4 {[%clk 0:03:00]}  Nf6 {[%clk 0:02:59]} 2. f3 {[%clk 0:02:59]}  d5 {[%clk 0:02:58]} 3. e4 {[%clk 0:02:59]}  dxe4 {[%clk 0:02:58]} 4. Nc3 {[%clk 0:02:59]}  c5 {[%clk 0:02:45]} 5. d5 {[%clk 0:02:59]}  e3 {[%clk 0:02:39]} 6. Bxe3 {[%clk 0:02:56]}  Nbd7 {[%clk 0:02:36]} 7. Qd2 {[%clk 0:02:34]}  a6 {[%clk 0:02:35]} 8. Ne4 {[%clk 0:02:11]}  b6 {[%clk 0:02:26]} 9. Ne2 {[%clk 0:01:58]}  Bb7 {[%clk 0:02:21]} 10. N2c3 {[%clk 0:01:54]}  g6 {[%clk 0:02:06]} 11. O-O-O {[%clk 0:01:47]}  Bg7 {[%clk 0:02:05]} 12. Bh6 {[%clk 0:01:47]}  O-O {[%clk 0:01:57]} 13. h4 {[%clk 0:01:46]}  b5 {[%clk 0:01:34]} 14. h5 {[%clk 0:00:59]}  b4 {[%clk 0:01:31]} 15. Bxg7 {[%clk 0:00:59]}  Kxg7 {[%clk 0:01:27]} 16. hxg6 {[%clk 0:00:59]}  fxg6 {[%clk 0:00:49]} 17. Qh6+ {[%clk 0:00:58]}  Kh8 {[%clk 0:00:36]} 18. Ng5 {[%clk 0:00:56]}  bxc3 {[%clk 0:00:16]} 19. Ne6 {[%clk 0:00:45]}  cxb2+ {[%clk 0:00:08]} 20. Kb1 {[%clk 0:00:43]}  Rf7 {[%clk 0:00:08]} 21. Nxd8 {[%clk 0:00:40]}  Rxd8 {[%clk 0:00:09]} 22. c4 {[%clk 0:00:37]}  Nb6 {[%clk 0:00:07]} 23. Bd3 {[%clk 0:00:31]}  Na4 {[%clk 0:00:06]} 24. Qd2 {[%clk 0:00:32]}  Rb8 {[%clk 0:00:05]} 25. Bc2 {[%clk 0:00:30]}  Nb6 {[%clk 0:00:04]} 26. Bb3 {[%clk 0:00:28]}  Bc8 {[%clk 0:00:04]} 27. Qc3 {[%clk 0:00:23]}  Kg8 {[%clk 0:00:04]} 28. Rde1 {[%clk 0:00:22]}  Bf5+ {[%clk 0:00:03]} 29. Bc2 {[%clk 0:00:20]}  Bd7 {[%clk 0:00:03]} 30. Re3 {[%clk 0:00:12]}  Be8 {[%clk 0:00:03]} 31. Rhe1 {[%clk 0:00:11]}  Rb7 {[%clk 0:00:03]} 32. d6 {[%clk 0:00:11]} 1-0


[Site "https://www.chess.com"]

[Event "Titled Tuesday Blitz March 29 Late 2022"]
[White "Tiarks, Jann-Christian"]
[Black "Ricaurte Lopez, Juan Carlos"]
[WhiteFideId "12951595"]
[BlackFideId "3600327"]
[WhiteElo "2176"]
[BlackElo "2209"]
[Result "1-0"]
[Round "05"]
[TimeControl "180+1"]
[Date "2022.03.30"]
[WhiteClock "0:01:50"]
[BlackClock "0:00:20"]

1. e4 {[%clk 0:03:00]}  e5 {[%clk 0:02:57]} 2. Nf3 {[%clk 0:03:00]}  Nc6 {[%clk 0:02:55]} 3. d4 {[%clk 0:03:00]}  exd4 {[%clk 0:02:54]} 4. Nxd4 {[%clk 0:03:01]}  g6 {[%clk 0:02:51]} 5. b3 {[%clk 0:02:51]}  Bg7 {[%clk 0:02:48]} 6. Bb2 {[%clk 0:02:52]}  Nxd4 {[%clk 0:02:41]} 7. Bxd4 {[%clk 0:02:51]}  Bxd4 {[%clk 0:02:39]} 8. Qxd4 {[%clk 0:02:51]}  Qf6 {[%clk 0:02:37]} 9. e5 {[%clk 0:02:47]}  Qb6 {[%clk 0:02:33]} 10. Qxb6 {[%clk 0:02:40]}  axb6 {[%clk 0:02:31]} 11. Nc3 {[%clk 0:02:39]}  Ra5 {[%clk 0:02:04]} 12. f4 {[%clk 0:02:34]}  d6 {[%clk 0:01:44]} 13. exd6 {[%clk 0:02:30]}  cxd6 {[%clk 0:01:44]} 14. O-O-O {[%clk 0:02:27]}  Nf6 {[%clk 0:01:35]} 15. Rxd6 {[%clk 0:02:25]}  Ke7 {[%clk 0:01:34]} 16. Rxb6 {[%clk 0:02:25]}  Rd8 {[%clk 0:01:33]} 17. Bc4 {[%clk 0:02:20]}  Rd4 {[%clk 0:01:12]} 18. Re1+ {[%clk 0:02:12]}  Be6 {[%clk 0:00:47]} 19. Bxe6 {[%clk 0:02:09]}  fxe6 {[%clk 0:00:40]} 20. Rexe6+ {[%clk 0:02:08]}  Kf7 {[%clk 0:00:32]} 21. Rxf6+ {[%clk 0:02:08]}  Kg7 {[%clk 0:00:32]} 22. g3 {[%clk 0:01:52]}  Rc5 {[%clk 0:00:27]} 23. Ne2 {[%clk 0:01:50]}  Re4 {[%clk 0:00:20]} 24. Rfe6 {[%clk 0:01:50]} 1-0


[Site "https://www.chess.com"]

[Event "Titled Tuesday Blitz March 29 Late 2022"]
[White "Vifleemskaia, Svetlana"]
[Black "Martinez Reyes, Pedro Ramon"]
[WhiteFideId "4129490"]
[BlackFideId "3901807"]
[WhiteElo "1901"]
[BlackElo "2410"]
[Result "0-1"]
[Round "05"]
[TimeControl "180+1"]
[Date "2022.03.30"]
[WhiteClock "0:00:01"]
[BlackClock "0:00:35"]

1. d4 {[%clk 0:02:15]}  d6 {[%clk 0:02:53]} 2. e4 {[%clk 0:02:14]}  g6 {[%clk 0:02:51]} 3. Nc3 {[%clk 0:02:14]}  Bg7 {[%clk 0:02:51]} 4. Bg5 {[%clk 0:02:15]}  a6 {[%clk 0:02:46]} 5. a4 {[%clk 0:02:13]}  h6 {[%clk 0:02:25]} 6. Be3 {[%clk 0:02:10]}  Nf6 {[%clk 0:02:21]} 7. h3 {[%clk 0:02:09]}  Nc6 {[%clk 0:02:18]} 8. Qd2 {[%clk 0:02:07]}  e5 {[%clk 0:02:17]} 9. dxe5 {[%clk 0:02:04]}  Nxe5 {[%clk 0:02:13]} 10. f4 {[%clk 0:01:55]}  Nc6 {[%clk 0:02:13]} 11. Nf3 {[%clk 0:01:52]}  O-O {[%clk 0:02:07]} 12. Bd3 {[%clk 0:01:37]}  d5 {[%clk 0:02:05]} 13. exd5 {[%clk 0:01:30]}  Nxd5 {[%clk 0:02:05]} 14. Nxd5 {[%clk 0:01:26]}  Qxd5 {[%clk 0:02:05]} 15. O-O {[%clk 0:01:15]}  Bf5 {[%clk 0:01:56]} 16. Rad1 {[%clk 0:01:08]}  Rad8 {[%clk 0:01:52]} 17. Qf2 {[%clk 0:00:42]}  Bxb2 {[%clk 0:01:23]} 18. Bxf5 {[%clk 0:00:40]}  Qxf5 {[%clk 0:01:10]} 19. Rb1 {[%clk 0:00:38]}  Bg7 {[%clk 0:01:00]} 20. Rxb7 {[%clk 0:00:35]}  Rd7 {[%clk 0:00:58]} 21. Nh4 {[%clk 0:00:25]}  Qe4 {[%clk 0:00:58]} 22. f5 {[%clk 0:00:18]}  Re8 {[%clk 0:00:56]} 23. Rb3 {[%clk 0:00:11]}  Bd4 {[%clk 0:00:44]} 24. Bxd4 {[%clk 0:00:09]}  Qxd4 {[%clk 0:00:44]} 25. Qxd4 {[%clk 0:00:07]}  Nxd4 {[%clk 0:00:45]} 26. Rg3 {[%clk 0:00:04]}  Ne2+ {[%clk 0:00:44]} 27. Kh2 {[%clk 0:00:04]}  Nxg3 {[%clk 0:00:45]} 28. Kxg3 {[%clk 0:00:05]}  g5 {[%clk 0:00:40]} 29. Nf3 {[%clk 0:00:04]}  Kg7 {[%clk 0:00:40]} 30. h4 {[%clk 0:00:03]}  Kf6 {[%clk 0:00:40]} 31. hxg5+ {[%clk 0:00:03]}  hxg5 {[%clk 0:00:41]} 32. Kh3 {[%clk 0:00:02]}  Re4 {[%clk 0:00:40]} 33. g4 {[%clk 0:00:01]}  Rd8 {[%clk 0:00:37]} 34. Rb1 {[%clk 0:00:01]}  Re3 {[%clk 0:00:36]} 35. Kg2 {[%clk 0:00:01]}  Rde8 {[%clk 0:00:35]} 0-1


[Site "https://www.chess.com"]

[Event "Titled Tuesday Blitz March 29 Late 2022"]
[White "Xiong, Jeffery"]
[Black "Cardoso Cardoso, Jose Gabriel"]
[WhiteFideId "2047640"]
[BlackFideId "4430492"]
[WhiteElo "2727"]
[BlackElo "2451"]
[Result "1-0"]
[Round "05"]
[TimeControl "180+1"]
[Date "2022.03.29"]
[WhiteClock "0:00:58"]
[BlackClock "0:00:04"]

1. e4 {[%clk 0:03:00]}  c5 {[%clk 0:02:58]} 2. Nc3 {[%clk 0:03:00]}  a6 {[%clk 0:02:57]} 3. g3 {[%clk 0:03:00]}  b5 {[%clk 0:02:56]} 4. Bg2 {[%clk 0:03:01]}  Bb7 {[%clk 0:02:57]} 5. Nh3 {[%clk 0:03:01]}  e6 {[%clk 0:02:56]} 6. O-O {[%clk 0:03:01]}  Nf6 {[%clk 0:02:53]} 7. Qe2 {[%clk 0:03:00]}  b4 {[%clk 0:02:44]} 8. Na4 {[%clk 0:03:00]}  d5 {[%clk 0:02:44]} 9. e5 {[%clk 0:02:53]}  Nfd7 {[%clk 0:02:34]} 10. c4 {[%clk 0:02:54]}  Nc6 {[%clk 0:02:25]} 11. cxd5 {[%clk 0:02:50]}  Nd4 {[%clk 0:02:25]} 12. Qd1 {[%clk 0:02:41]}  Bxd5 {[%clk 0:01:58]} 13. Bxd5 {[%clk 0:02:41]}  exd5 {[%clk 0:01:59]} 14. d3 {[%clk 0:02:41]}  Be7 {[%clk 0:01:37]} 15. f4 {[%clk 0:02:39]}  O-O {[%clk 0:01:37]} 16. Be3 {[%clk 0:02:39]}  Nb5 {[%clk 0:01:31]} 17. Qf3 {[%clk 0:02:38]}  d4 {[%clk 0:01:22]} 18. Bd2 {[%clk 0:02:38]}  Rc8 {[%clk 0:01:13]} 19. Nf2 {[%clk 0:02:36]}  f5 {[%clk 0:01:09]} 20. a3 {[%clk 0:02:30]}  bxa3 {[%clk 0:01:02]} 21. bxa3 {[%clk 0:02:31]}  Nb6 {[%clk 0:00:54]} 22. Ba5 {[%clk 0:02:29]}  Qd5 {[%clk 0:00:54]} 23. Qxd5+ {[%clk 0:02:25]}  Nxd5 {[%clk 0:00:49]} 24. Rfc1 {[%clk 0:02:25]}  Rc6 {[%clk 0:00:35]} 25. Nd1 {[%clk 0:02:21]}  g5 {[%clk 0:00:31]} 26. Bd2 {[%clk 0:02:17]}  gxf4 {[%clk 0:00:30]} 27. gxf4 {[%clk 0:02:18]}  Kf7 {[%clk 0:00:29]} 28. Nf2 {[%clk 0:02:11]}  Bh4 {[%clk 0:00:27]} 29. Nh3 {[%clk 0:02:10]}  Rg8+ {[%clk 0:00:26]} 30. Kh1 {[%clk 0:02:04]}  Be7 {[%clk 0:00:26]} 31. Ng5+ {[%clk 0:02:01]}  Bxg5 {[%clk 0:00:23]} 32. fxg5 {[%clk 0:02:02]}  Rgc8 {[%clk 0:00:22]} 33. Nb2 {[%clk 0:01:57]}  Nbc3 {[%clk 0:00:21]} 34. Nc4 {[%clk 0:01:57]}  Ke6 {[%clk 0:00:21]} 35. Rg1 {[%clk 0:01:52]}  Ne7 {[%clk 0:00:17]} 36. Bxc3 {[%clk 0:01:42]}  dxc3 {[%clk 0:00:18]} 37. Rac1 {[%clk 0:01:42]}  Rb8 {[%clk 0:00:08]} 38. Rxc3 {[%clk 0:01:42]}  Rc7 {[%clk 0:00:08]} 39. h4 {[%clk 0:01:38]}  Rcb7 {[%clk 0:00:08]} 40. h5 {[%clk 0:01:37]}  Rb3 {[%clk 0:00:07]} 41. Rxb3 {[%clk 0:01:11]}  Rxb3 {[%clk 0:00:07]} 42. Rg3 {[%clk 0:01:11]}  f4 {[%clk 0:00:05]} 43. Rh3 {[%clk 0:01:08]}  Kf5 {[%clk 0:00:04]} 44. g6 {[%clk 0:01:09]}  hxg6 {[%clk 0:00:05]} 45. Nd6+ {[%clk 0:01:05]}  Ke6 {[%clk 0:00:04]} 46. hxg6 {[%clk 0:01:02]}  Nxg6 {[%clk 0:00:03]} 47. Rh6 {[%clk 0:01:02]}  Kxe5 {[%clk 0:00:03]} 48. Rxg6 {[%clk 0:01:03]}  Rxd3 {[%clk 0:00:03]} 49. Nf7+ {[%clk 0:00:58]}  Ke4 {[%clk 0:00:04]} 50. Re6+ {[%clk 0:00:58]}  Kf3 {[%clk 0:00:04]} 51. Ne5+ {[%clk 0:00:58]} 1-0


[Site "https://www.chess.com"]

[Event "Titled Tuesday Blitz March 29 Late 2022"]
[White "Adewumi, Tanitoluwa"]
[Black "Korchmar, Vasiliy"]
[WhiteFideId "30966396"]
[BlackFideId "24131750"]
[WhiteElo "2573"]
[BlackElo "2370"]
[Result "1/2-1/2"]
[Round "06"]
[TimeControl "180+1"]
[Date "2022.03.29"]
[WhiteClock "0:00:07"]
[BlackClock "0:00:06"]

1. e4 {[%clk 0:03:00]}  c5 {[%clk 0:03:00]} 2. Nf3 {[%clk 0:02:59]}  d6 {[%clk 0:03:00]} 3. Bb5+ {[%clk 0:02:56]}  Nd7 {[%clk 0:03:00]} 4. O-O {[%clk 0:02:47]}  a6 {[%clk 0:03:00]} 5. Bd3 {[%clk 0:02:42]}  b5 {[%clk 0:02:59]} 6. Re1 {[%clk 0:02:39]}  Bb7 {[%clk 0:02:59]} 7. c4 {[%clk 0:02:32]}  b4 {[%clk 0:02:49]} 8. Bc2 {[%clk 0:02:25]}  g6 {[%clk 0:02:44]} 9. a3 {[%clk 0:02:01]}  a5 {[%clk 0:02:40]} 10. Ba4 {[%clk 0:01:48]}  Bg7 {[%clk 0:02:36]} 11. e5 {[%clk 0:01:16]}  dxe5 {[%clk 0:02:34]} 12. Nxe5 {[%clk 0:01:03]}  Nf6 {[%clk 0:02:34]} 13. d4 {[%clk 0:00:57]}  O-O {[%clk 0:02:19]} 14. Bg5 {[%clk 0:00:45]}  cxd4 {[%clk 0:02:09]} 15. Nxd7 {[%clk 0:00:39]}  Nxd7 {[%clk 0:02:09]} 16. Bxe7 {[%clk 0:00:36]}  Qc7 {[%clk 0:02:10]} 17. Bxf8 {[%clk 0:00:27]}  Rxf8 {[%clk 0:02:11]} 18. axb4 {[%clk 0:00:22]}  axb4 {[%clk 0:02:10]} 19. Bxd7 {[%clk 0:00:20]}  Qxd7 {[%clk 0:02:10]} 20. Qd3 {[%clk 0:00:15]}  Qg4 {[%clk 0:00:55]} 21. f3 {[%clk 0:00:13]}  Qh4 {[%clk 0:00:55]} 22. Nd2 {[%clk 0:00:10]}  Bh6 {[%clk 0:00:54]} 23. g3 {[%clk 0:00:10]}  Qh3 {[%clk 0:00:51]} 24. Ne4 {[%clk 0:00:09]}  Be3+ {[%clk 0:00:46]} 25. Rxe3 {[%clk 0:00:09]}  dxe3 {[%clk 0:00:47]} 26. Qxe3 {[%clk 0:00:09]}  Qe6 {[%clk 0:00:25]} 27. Re1 {[%clk 0:00:09]}  Qxc4 {[%clk 0:00:21]} 28. Nf6+ {[%clk 0:00:08]}  Kh8 {[%clk 0:00:09]} 29. Qe5 {[%clk 0:00:08]}  Qe6 {[%clk 0:00:10]} 30. Qxe6 {[%clk 0:00:06]}  fxe6 {[%clk 0:00:11]} 31. Rxe6 {[%clk 0:00:07]}  Bxf3 {[%clk 0:00:11]} 32. g4 {[%clk 0:00:06]}  g5 {[%clk 0:00:09]} 33. h4 {[%clk 0:00:04]}  gxh4 {[%clk 0:00:09]} 34. g5 {[%clk 0:00:05]}  Kg7 {[%clk 0:00:07]} 35. Re7+ {[%clk 0:00:03]}  Kg6 {[%clk 0:00:08]} 36. Nxh7 {[%clk 0:00:03]}  Rc8 {[%clk 0:00:04]} 37. Kh2 {[%clk 0:00:03]}  Bg4 {[%clk 0:00:03]} 38. Nf6 {[%clk 0:00:03]}  Rc2+ {[%clk 0:00:03]} 39. Kg1 {[%clk 0:00:04]}  Bf3 {[%clk 0:00:02]} 40. Ne8 {[%clk 0:00:02]}  h3 {[%clk 0:00:02]} 41. Rg7+ {[%clk 0:00:02]}  Kf5 {[%clk 0:00:02]} 42. Rh7 {[%clk 0:00:03]}  Kg4 {[%clk 0:00:02]} 43. Nf6+ {[%clk 0:00:03]}  Kg3 {[%clk 0:00:02]} 44. Rxh3+ {[%clk 0:00:03]}  Kxh3 {[%clk 0:00:02]} 45. Kf1 {[%clk 0:00:03]}  Kg3 {[%clk 0:00:02]} 46. Ke1 {[%clk 0:00:04]}  Rxb2 {[%clk 0:00:03]} 47. g6 {[%clk 0:00:04]}  Re2+ {[%clk 0:00:03]} 48. Kf1 {[%clk 0:00:04]}  Rf2+ {[%clk 0:00:04]} 49. Ke1 {[%clk 0:00:04]}  Re2+ {[%clk 0:00:04]} 50. Kf1 {[%clk 0:00:05]}  Bd5 {[%clk 0:00:04]} 51. Kxe2 {[%clk 0:00:04]}  Bc4+ {[%clk 0:00:03]} 52. Ke3 {[%clk 0:00:03]}  b3 {[%clk 0:00:04]} 53. Kd2 {[%clk 0:00:04]}  Kf4 {[%clk 0:00:04]} 54. g7 {[%clk 0:00:04]}  Kf5 {[%clk 0:00:04]} 55. g8=Q {[%clk 0:00:04]}  Bxg8 {[%clk 0:00:04]} 56. Nxg8 {[%clk 0:00:05]}  Ke4 {[%clk 0:00:05]} 57. Kc3 {[%clk 0:00:05]}  Ke3 {[%clk 0:00:05]} 58. Kb2 {[%clk 0:00:06]}  Ke2 {[%clk 0:00:06]} 59. Kxb3 {[%clk 0:00:07]} 1/2-1/2


[Site "https://www.chess.com"]

[Event "Titled Tuesday Blitz March 29 Late 2022"]
[White "Aydin, Gulenay"]
[Black "Diaz Perez, Michel Alejandro"]
[WhiteFideId "34557431"]
[BlackFideId "3517179"]
[WhiteElo "1429"]
[BlackElo "2337"]
[Result "0-1"]
[Round "06"]
[TimeControl "180+1"]
[Date "2022.03.30"]
[WhiteClock "0:00:06"]
[BlackClock "0:00:50"]

1. e4 {[%clk 0:03:00]}  c6 {[%clk 0:02:57]} 2. d4 {[%clk 0:02:59]}  d5 {[%clk 0:02:58]} 3. Nd2 {[%clk 0:02:59]}  dxe4 {[%clk 0:02:58]} 4. Nxe4 {[%clk 0:03:00]}  Nd7 {[%clk 0:02:58]} 5. Nf3 {[%clk 0:02:59]}  Ngf6 {[%clk 0:02:58]} 6. Nxf6+ {[%clk 0:02:59]}  Nxf6 {[%clk 0:02:59]} 7. c3 {[%clk 0:02:59]}  Bg4 {[%clk 0:02:58]} 8. h3 {[%clk 0:02:57]}  Bh5 {[%clk 0:02:57]} 9. g4 {[%clk 0:02:54]}  Bg6 {[%clk 0:02:57]} 10. Ne5 {[%clk 0:02:50]}  e6 {[%clk 0:02:57]} 11. h4 {[%clk 0:02:37]}  Bd6 {[%clk 0:02:03]} 12. Qe2 {[%clk 0:01:01]}  Qa5 {[%clk 0:01:27]} 13. Bg2 {[%clk 0:00:51]}  O-O-O {[%clk 0:01:15]} 14. Bf4 {[%clk 0:00:38]}  Nd5 {[%clk 0:01:13]} 15. Bg3 {[%clk 0:00:35]}  Nxc3 {[%clk 0:00:58]} 16. bxc3 {[%clk 0:00:27]}  Qxc3+ {[%clk 0:00:58]} 17. Qd2 {[%clk 0:00:20]}  Bb4 {[%clk 0:00:52]} 18. Qxc3 {[%clk 0:00:11]}  Bxc3+ {[%clk 0:00:53]} 19. Ke2 {[%clk 0:00:09]}  Bxa1 {[%clk 0:00:53]} 20. Rxa1 {[%clk 0:00:07]}  Rxd4 {[%clk 0:00:54]} 21. Rb1 {[%clk 0:00:06]}  Bxb1 {[%clk 0:00:50]} 0-1


[Site "https://www.chess.com"]